{"text_format":"1","workbook":"xlsx","n_sheets":3,"sheets":["Hoja1","Hoja2","Hoja3"],"not_rendered":{"charts":1,"images":1,"macros":1,"external_links":0,"defined_names":5,"comments":0,"pivot_tables":0},"unopened":[],"bounds":{"document_bytes":16777216,"sheet_cells":100000,"rows_first":2000,"rows_last":500,"rows_between":2000,"halvings":0,"cell_chars":16384,"cell_head_chars":4096},"cells_cut":0,"cells_raw":0,"read":"whole","date_system":"1900"}

{"sheet":"Hoja1","index":0,"n_rows":50,"n_cols":20,"rows_kept":50,"cut":false,"hidden":false,"merged":[[7,0,7,1],[7,2,11,7],[4,0,5,7]]}
[]
[]
[]
[]
["Asigna los valores de velocidad inicial, aceleración y tiempo del movimiento para obtener la distancia recorrida y la velocidad final."]
[]
[]
["MRUA: Movimiento Rectilineo Uniformemente Acelerado"]
["Velocidad inicial (m/s)",35]
["Aceleración  (g)",16]
["Tiempo (s)",{"$f":"T50/10","v":1}]
["Velocidad Final (m/s)",{"$f":"v0+(a*t)","v":51}]
["Distancia(m)",{"$f":"((v0*t)+0.5*(a*(t^2)))","v":43}]
[]
["Trabajo realizado con el apoyo del Programa UNAM-DGAPA-PAPIME PE110517"]
[]
[]
[]
[]
[]
[]
[]
[]
[]
[]
[null,null,null,null,null,null,null,null,"t","h"]
[null,null,null,null,0,{"$f":"-((t+E27)^2)+10","v":9},null,null,1,{"$f":"-((v0*(t+I27))+0.5*(a*((t+I27)^2)))","v":-102}]
[null,null,null,null,1,6,null,null,2,-177]
[null,null,null,null,2,1,null,null,3,-268]
[null,null,null,null,3,-6,null,null,4,-375]
[null,null,null,null,4,-15,null,null,5,-498]
[null,null,null,null,5,-26,null,null,6,-637]
[null,null,null,null,6,-39,null,null,7,-792]
[null,null,null,null,7,-54,null,null,8,-963]
[null,null,null,null,8,-71,null,null,9,-1150]
[null,null,null,null,9,-90,null,null,10,-1353]
[null,null,null,null,10,-111]
[null,null,null,null,11,-134]
[null,null,null,null,12,-159]
[]
[]
[]
[]
[]
[]
[]
[]
[]
[]
[null,null,null,null,null,null,null,null,null,null,null,null,null,null,null,null,null,null,null,10]

{"sheet":"Hoja2","index":1,"n_rows":0,"n_cols":0,"rows_kept":0,"cut":false,"hidden":false,"merged":[]}

{"sheet":"Hoja3","index":2,"n_rows":0,"n_cols":0,"rows_kept":0,"cut":false,"hidden":false,"merged":[]}